bitfinex/quotes_BTCUSD_20251012
["timestamp","ask_amount","ask_price","bid_price","bid_amount"]
[1760238736781,0.08952952,111110.0,111090.0,0.18003291]
[1760238736985,0.08952952,111110.0,111090.0,0.55982761]
[1760238737203,0.08952952,111110.0,111090.0,0.3797947]
[1760238737414,0.26954484,111110.0,111080.0,0.59533022]
[1760238737646,0.08952952,111110.0,111080.0,0.70160915]
[1760238737828,0.08967962,111110.0,111080.0,0.71061167]
[1760238738035,0.08967962,111110.0,111080.0,0.78438167]
[1760238738260,0.08967962,111110.0,111090.0,0.1800309]
[1760238739136,0.00235206,111100.0,111090.0,0.1800309]
[1760238739565,0.00235206,111100.0,111090.0,1.4235322]
[1760238739777,0.00235206,111100.0,111090.0,1.48732011]
[1760238739986,0.00235206,111100.0,111090.0,0.72773071]
[1760238740226,0.00235206,111100.0,111090.0,1.0437375]
[1760238740434,0.00235206,111100.0,111090.0,1.10752541]
[1760238740665,0.00235206,111100.0,111090.0,1.48732011]
[1760238741051,0.0002,111150.0,111130.0,0.1799694]
[1760238741252,0.00034999,111150.0,111140.0,0.72165513]
[1760238741414,0.00034999,111150.0,111140.0,0.75339463]
[1760238741616,0.00034999,111150.0,111140.0,1.57677884]
[1760238741820,0.00034999,111150.0,111140.0,1.51298403]
[1760238742015,0.00034999,111150.0,111140.0,0.4839119]
[1760238742219,0.00034999,111150.0,111140.0,0.0301519]
[1760238742444,0.08987951,111150.0,111120.0,0.13750235]
[1760238742769,0.08952952,111140.0,111110.0,0.21998873]
[1760238742964,0.08952952,111140.0,111110.0,0.29375873]
[1760238743288,0.55976447,111130.0,111090.0,0.81794328]
[1760238743641,0.55976447,111130.0,111100.0,0.18001767]
[1760238743642,0.08952952,111120.0,111100.0,0.18001767]
[1760238744079,0.00034999,111150.0,111130.0,0.17996465]
[1760238744278,0.00034999,111150.0,111140.0,0.27171853]
[1760238744488,0.00034999,111150.0,111140.0,0.66366981]
[1760238745576,0.17988969,111180.0,111150.0,0.17993702]
[1760238745784,0.08952952,111170.0,111160.0,0.01799208]
[1760238747041,0.00049985,111180.0,111170.0,0.17990465]
[1760238747261,0.09002937,111180.0,111170.0,0.17990465]
[1760238747475,0.00519974,111180.0,111170.0,0.59968935]
[1760238747676,0.00519974,111180.0,111170.0,0.70361125]
[1760238749146,0.00519974,111180.0,111170.0,0.32381655]
[1760238749561,0.00519974,111180.0,111170.0,0.70361125]
[1760238750434,0.18882653,111250.0,111210.0,0.17983722]
[1760238750656,0.08952952,111240.0,111220.0,0.3797947]
[1760238750864,0.08952952,111240.0,111230.0,0.01798076]
[1760238751530,0.08952952,111240.0,111230.0,0.39777546]
[1760238751737,0.08952952,111240.0,111220.0,0.55960252]
[1760238751943,0.08952952,111240.0,111230.0,0.01798076]
[1760238751944,0.64911566,111240.0,111230.0,0.01798076]
[1760238752144,0.64911843,111240.0,111200.0,0.26046879]
[1760238752351,0.55960495,111230.0,111200.0,0.25147941]
[1760238752563,0.08952952,111220.0,111210.0,0.17983994]
[1760238754099,0.00913877,111250.0,111220.0,0.17981266]
[1760238754322,0.00913877,111250.0,111230.0,0.19778836]
[1760238754323,0.08952952,111240.0,111230.0,0.19778836]
[1760238754533,0.08952952,111240.0,111230.0,0.1798076]
[1760238754743,0.08952952,111240.0,111220.0,0.21894337]
[1760238754948,0.55960511,111230.0,111200.0,0.07162362]
[1760238755164,0.26935385,111220.0,111200.0,0.07162362]
[1760238755418,0.26935385,111220.0,111180.0,0.07162362]
[1760238755419,0.56862663,111210.0,111180.0,0.07162362]
[1760238755632,0.26938782,111200.0,111180.0,0.07162362]
[1760238755854,0.08952952,111200.0,111180.0,0.25151034]
[1760238756275,0.08952952,111200.0,111180.0,0.17988672]
[1760238756758,0.08967941,111200.0,111190.0,0.19785951]
[1760238756971,0.08967941,111200.0,111170.0,0.56965621]
[1760238757175,0.26953897,111200.0,111170.0,0.5208675]
[1760238757595,0.65832647,111200.0,111170.0,0.00096597]
[1760238757813,0.55966886,111190.0,111170.0,0.00096597]
[1760238758038,0.10935309,111190.0,111170.0,0.00096597]
[1760238758451,0.48914779,111190.0,111170.0,0.00096597]
[1760238758657,0.17987261,111190.0,111170.0,0.00096597]
[1760238758868,0.55968316,111180.0,111170.0,0.00096597]
[1760238759094,0.56779637,111180.0,111170.0,0.00096597]
[1760238759512,0.77010254,111180.0,111170.0,0.00096597]
[1760238760566,1.11010254,111180.0,111170.0,0.00096597]
[1760238760772,1.7172034,111180.0,111170.0,0.00096597]
[1760238760989,1.74364624,111180.0,111170.0,0.00096597]
[1760238761404,1.11010254,111180.0,111170.0,0.00096597]
[1760238761625,1.69220341,111180.0,111170.0,0.00096597]
[1760238761857,1.7172034,111180.0,111170.0,0.00096597]
[1760238762039,1.87379813,111180.0,111170.0,0.00096597]
[1760238762651,1.87379813,111180.0,111170.0,1e-08]
[1760238763733,5.92934089,111180.0,111170.0,1e-08]
[1760238765012,1.84667205,111180.0,111170.0,1e-08]
[1760238765451,1.87311489,111180.0,111170.0,1e-08]
[1760238765894,5.92934089,111180.0,111170.0,1e-08]
[1760238766103,1.87311489,111180.0,111170.0,1e-08]
[1760238766314,1.84667205,111180.0,111170.0,1e-08]
[1760238766742,1.87311489,111180.0,111170.0,1e-08]
[1760238767402,5.92934089,111180.0,111170.0,1e-08]
[1760238768035,1.87311489,111180.0,111170.0,1e-08]
[1760238768398,5.92934089,111180.0,111170.0,1e-08]
[1760238769596,0.51995321,111140.0,111130.0,0.07162362]
[1760238769826,0.1799856,111120.0,111110.0,0.07162362]
[1760238770019,1.69472906,111120.0,111110.0,0.07162362]
[1760238770221,0.180018,111100.0,111090.0,0.07162362]
[1760238770426,0.77347067,111100.0,111090.0,0.07162362]
[1760238770628,0.18005041,111080.0,111070.0,0.07162362]
[1760238770868,0.77431348,111080.0,111070.0,0.07212347]
[1760238771086,0.77431348,111080.0,111070.0,0.00049985]
[1760238772396,1.11431348,111080.0,111070.0,0.00049985]
[1760238773608,0.53221261,111080.0,111070.0,0.00049985]
[1760238773823,1.11431348,111080.0,111070.0,0.00049985]
[1760238775300,1.34428457,111060.0,111050.0,0.0004]
[1760238775517,1.69685207,111060.0,111050.0,0.00054999]
[1760238775956,1.69685207,111060.0,111050.0,0.00760606]
[1760238776161,1.72185206,111060.0,111050.0,0.00760606]
[1760238776788,1.82185205,111060.0,111050.0,0.00760606]
[1760238776926,1.60590464,111060.0,111050.0,0.00760606]
[1760238777144,1.78598747,111060.0,111050.0,0.00760606]
[1760238777556,1.68598748,111060.0,111050.0,0.00760606]
[1760238777760,0.18011527,111040.0,111030.0,0.07162362]
[1760238777959,0.18014772,111020.0,111010.0,0.07162362]
[1760238778137,0.77684368,111020.0,111010.0,0.07212397]
[1760238778349,0.77684368,111020.0,111010.0,0.00050035]
[1760238779740,1.11684368,111020.0,111010.0,0.00050035]
[1760238780735,0.59669596,111020.0,111010.0,0.00050035]
[1760238780936,0.01459509,111020.0,111010.0,0.18066429]
[1760238781137,0.19474281,111020.0,111010.0,0.00050035]
[1760238781344,0.77684368,111020.0,111010.0,0.00050035]
[1760238781536,0.19474281,111020.0,111010.0,0.00050035]
[1760238781934,0.77684368,111020.0,111010.0,0.00050035]
[1760238782436,0.58210087,111020.0,111010.0,0.00050035]
[1760238782616,0.76223453,111030.0,111010.0,0.00050035]
[1760238782820,0.18911753,111050.0,111010.0,0.18066342]
[1760238783034,0.7712184,111050.0,111020.0,0.18014696]
[1760238783245,0.1801004,111050.0,111020.0,0.26245434]
[1760238783663,0.76220127,111050.0,111040.0,0.00058838]
[1760238785203,1.10220127,111050.0,111040.0,0.00058838]
[1760238786263,0.76224859,111020.0,111010.0,0.00050035]
[1760238786645,0.18014502,111030.0,111010.0,0.00050035]
[1760238786859,0.00096741,111050.0,111020.0,0.00900738]
[1760238787035,0.00096741,111050.0,111030.0,0.18013119]
[1760238787238,0.00096741,111050.0,111040.0,0.18011527]
[1760238787427,0.00096741,111050.0,111030.0,0.03877]
[1760238787779,0.00096741,111050.0,111030.0,0.21889829]
[1760238788305,0.77217642,111050.0,111010.0,0.12157854]
[1760238788685,0.00096741,111050.0,111020.0,0.20716503]
[1760238788823,0.00096741,111050.0,111030.0,0.18013139]
[1760238789237,0.76316775,111050.0,111020.0,0.18915026]
[1760238789444,0.7721727,111050.0,111020.0,0.18915026]
[1760238790688,0.19007183,111050.0,111020.0,0.18915026]
[1760238790894,0.00096741,111050.0,111010.0,0.22843871]
[1760238791083,0.00096741,111050.0,111040.0,0.18011527]
[1760238791502,0.00096741,111050.0,111040.0,0.25341527]
[1760238792338,0.00096741,111050.0,111030.0,0.00058845]
[1760238792566,0.00096741,111050.0,111030.0,0.18071786]
[1760238793193,0.00096741,111050.0,111030.0,0.25401786]
[1760238794247,0.18107977,111050.0,111030.0,0.00058845]
[1760238794494,0.18011527,111040.0,111030.0,0.00058845]
[1760238795511,0.18107977,111050.0,111030.0,0.00058845]
[1760238795719,0.00096741,111050.0,111040.0,0.76221614]
[1760238795888,0.00096741,111050.0,111040.0,0.83551614]
[1760238796067,0.00096741,111050.0,111040.0,0.18011527]
[1760238796683,0.00096741,111050.0,111030.0,0.24444111]
[1760238796924,0.58306828,111050.0,111030.0,0.24444111]
[1760238797137,0.00096741,111050.0,111030.0,0.18070876]
[1760238797303,0.00096741,111050.0,111030.0,0.24444111]
[1760238798044,0.00096741,111050.0,111030.0,0.28321111]
[1760238798586,0.56771849,111060.0,111030.0,0.21947876]
[1760238798790,0.7478015,111060.0,111030.0,0.21947876]
[1760238798993,0.1890722,111070.0,111040.0,0.23689626]
[1760238799208,0.76216821,111070.0,111040.0,0.2278905]
[1760238799396,0.77115415,111080.0,111050.0,0.18009311]
[1760238799804,0.18006682,111070.0,111050.0,0.18009311]
[1760238800019,0.18008365,111060.0,111040.0,0.03877]
[1760238800220,0.18008365,111060.0,111040.0,0.21888243]
[1760238800424,0.18907015,111070.0,111050.0,0.1981055]
[1760238800770,0.18008283,111060.0,111040.0,0.30168854]
[1760238800988,0.7621837,111060.0,111040.0,0.00050035]
[1760238801388,0.18008283,111060.0,111040.0,0.00050035]
[1760238801766,0.18907351,111070.0,111040.0,0.29268392]
[1760238801974,0.77117438,111070.0,111040.0,0.21938392]
[1760238802177,0.18008409,111060.0,111040.0,0.00050035]
[1760238802593,0.18008409,111060.0,111040.0,0.21938463]
[1760238802809,0.18907351,111070.0,111040.0,0.29268463]
[1760238803009,0.18907351,111070.0,111040.0,0.21938463]
[1760238803189,0.18008454,111060.0,111040.0,0.03927035]
[1760238803411,0.18008454,111060.0,111040.0,0.2193847]
[1760238804405,0.18008454,111060.0,111040.0,0.2926847]
[1760238804605,0.18008454,111060.0,111040.0,0.2193847]
[1760238804791,0.77117438,111070.0,111040.0,0.2193847]
[1760238804994,0.00058825,111060.0,111040.0,0.22035215]
[1760238806393,0.1806728,111060.0,111040.0,0.0402378]
[1760238807319,0.18008455,111060.0,111040.0,0.22035246]
[1760238808616,0.18009905,111050.0,111040.0,0.0014678]
[1760238808848,0.18907351,111070.0,111040.0,0.29365091]
[1760238809057,0.18008283,111060.0,111050.0,0.03877]
[1760238809265,0.18009905,111050.0,111040.0,0.0014678]
[1760238810099,0.76219992,111050.0,111040.0,0.0014678]
[1760238810302,0.18009905,111050.0,111040.0,0.0014678]
[1760238810503,0.76219992,111050.0,111040.0,0.0014678]
[1760238813108,0.18009905,111050.0,111040.0,0.0014678]
[1760238813312,0.76219992,111050.0,111040.0,0.0014678]
[1760238814158,0.18009905,111050.0,111040.0,0.0014678]
[1760238814369,0.18008283,111060.0,111040.0,0.0014678]
[1760238814788,0.77117438,111070.0,111040.0,0.19958261]
[1760238814994,0.18008352,111060.0,111040.0,0.22080109]
[1760238815226,0.52905328,111080.0,111050.0,0.05323]
[1760238815429,0.76215222,111080.0,111050.0,0.28156348]
[1760238815633,0.18006712,111070.0,111050.0,0.28156348]
[1760238816045,0.18008283,111060.0,111040.0,0.10443015]
[1760238816247,0.7621837,111060.0,111040.0,0.0014678]
[1760238816654,0.18008283,111060.0,111040.0,0.0014678]
[1760238816855,0.7621837,111060.0,111040.0,0.0014678]
[1760238817265,0.7621837,111060.0,111050.0,0.06373235]
[1760238817470,0.18008283,111060.0,111050.0,0.06373235]
[1760238817809,0.7621837,111060.0,111050.0,0.06373235]
[1760238818530,0.18009905,111050.0,111040.0,0.06520015]
[1760238818735,0.1654437,111050.0,111040.0,0.06520015]
[1760238818940,0.7621837,111060.0,111040.0,0.06520015]
[1760238820126,0.18009905,111050.0,111040.0,0.06520015]
[1760238820784,0.76219992,111050.0,111040.0,0.06520015]
[1760238821587,0.55970063,111050.0,111040.0,0.06520015]
[1760238822015,0.55970063,111050.0,111040.0,0.0014678]
[1760238824677,0.89970063,111050.0,111040.0,0.0014678]
[1760238825086,1.27930221,111050.0,111040.0,0.0014678]
[1760238825300,1.27930221,111050.0,111040.0,1e-08]
[1760238825512,1.3793022,111050.0,111040.0,1e-08]
[1760238825719,1.40278403,111050.0,111040.0,1e-08]
[1760238826127,1.3793022,111050.0,111040.0,1e-08]
[1760238826328,1.40278403,111050.0,111040.0,1e-08]
[1760238827455,0.89970063,111050.0,111040.0,1e-08]
[1760238827590,0.18009905,111050.0,111040.0,1e-08]
[1760238827790,0.55970063,111050.0,111040.0,1e-08]
[1760238828956,0.89970063,111050.0,111040.0,1e-08]
[1760238830060,0.55970063,111050.0,111040.0,1e-08]
[1760238833245,0.93930221,111050.0,111040.0,1e-08]
[1760238833654,1.0393022,111050.0,111040.0,1e-08]
[1760238835067,1.3793022,111050.0,111040.0,1e-08]
[1760238835273,1.40430219,111050.0,111040.0,1e-08]
[1760238839148,0.64509903,111050.0,111040.0,1e-08]
[1760238839395,1.40430219,111050.0,111040.0,1e-08]
[1760238840801,1.43445409,111050.0,111040.0,1e-08]
[1760238841006,0.18016394,111010.0,111000.0,1e-08]
[1760238841215,0.52019641,110990.0,110980.0,0.07162362]
[1760238841425,0.18022889,110970.0,110960.0,0.07162362]
[1760238841626,0.93943205,110970.0,110960.0,0.07162362]
[1760238841861,0.18025343,110960.0,110940.0,0.26091298]
[1760238842050,0.18025343,110960.0,110930.0,0.24402427]
[1760238842051,0.37960158,110950.0,110930.0,0.24402427]
[1760238842260,0.18924033,110970.0,110940.0,0.18027762]
[1760238842460,0.37960158,110960.0,110940.0,0.18027762]
[1760238842672,0.37960158,110960.0,110940.0,0.18042772]
[1760238842877,0.37960158,110980.0,110960.0,0.18024396]
[1760238843100,0.37960158,110980.0,110970.0,0.18022569]
[1760238843296,0.4512252,111000.0,110970.0,0.27547713]
[1760238843501,0.55979915,110990.0,110970.0,0.22581713]
[1760238843698,0.55979915,110990.0,110970.0,0.18923713]
[1760238843901,0.18019757,110990.0,110970.0,0.18923713]
[1760238844113,0.18019757,110990.0,110980.0,0.18021265]
[1760238844114,0.37960158,110990.0,110980.0,0.18021265]
[1760238844332,0.37960158,110990.0,110970.0,0.18923713]
[1760238845148,0.55979806,110990.0,110970.0,0.18923713]
[1760238845371,0.55979806,110990.0,110970.0,0.18938723]
[1760238846544,0.55981423,110980.0,110970.0,0.0001501]
[1760238846964,0.55981423,110980.0,110970.0,0.27356001]
[1760238847224,0.55981423,110980.0,110970.0,0.00486001]
[1760238847422,0.18021265,110980.0,110970.0,0.00486001]
[1760238847630,0.55981423,110980.0,110970.0,0.00486001]
[1760238848387,0.93941581,110980.0,110970.0,0.00486001]
[1760238848723,1.27941581,110980.0,110970.0,0.00486001]
[1760238848939,0.89981423,110980.0,110970.0,0.00486001]
[1760238849130,0.18021265,110980.0,110970.0,0.00486001]
[1760238849310,0.55981423,110980.0,110970.0,0.00486001]
[1760238849531,0.18021265,110980.0,110970.0,0.00486001]
[1760238849713,0.55981423,110980.0,110970.0,0.00486001]
[1760238849925,0.37960158,110980.0,110970.0,0.1850889]
[1760238850148,0.55979806,110990.0,110970.0,0.00486001]
[1760238850305,0.18021265,110980.0,110970.0,0.0001501]
[1760238851017,0.55981423,110980.0,110970.0,0.0001501]
[1760238851871,0.55979806,110990.0,110970.0,0.0001501]
[1760238852202,0.18021265,110980.0,110970.0,0.01817298]
[1760238852408,0.18021265,110980.0,110970.0,0.0001501]
[1760238852617,0.18019648,110990.0,110970.0,0.0001501]
[1760238852776,0.18021265,110980.0,110970.0,0.0001501]
[1760238853139,0.18019648,110990.0,110970.0,0.18037872]
[1760238853392,0.18018035,111000.0,110980.0,0.01802126]
[1760238853805,0.18021265,110980.0,110970.0,0.0001501]
[1760238854009,0.54515006,110980.0,110970.0,0.0001501]
[1760238854464,0.88515006,110980.0,110970.0,0.0001501]
[1760238856676,1.26475164,110980.0,110970.0,0.0001501]
[1760238857096,1.26475164,110980.0,110970.0,1e-08]
[1760238863253,1.29490354,110980.0,110970.0,1e-08]
[1760238863449,1.31172756,110980.0,110970.0,1e-08]
[1760238863659,1.41172755,110980.0,110970.0,1e-08]
[1760238864310,1.39490353,110980.0,110970.0,1e-08]
[1760238864751,1.29490354,110980.0,110970.0,1e-08]
[1760238864966,0.63570037,110980.0,110970.0,1e-08]
[1760238865101,1.29490354,110980.0,110970.0,1e-08]
[1760238866880,1.311736,110980.0,110970.0,1e-08]
[1760238867101,1.29490354,110980.0,110970.0,1e-08]
[1760238867668,1.31173944,110980.0,110970.0,1e-08]
[1760238875374,1.41173943,110980.0,110970.0,1e-08]
[1760238876608,1.41176365,110980.0,110970.0,1e-08]
[1760238877307,1.28161176,110980.0,110970.0,1e-08]
[1760238877506,0.56201018,110980.0,110970.0,1e-08]
[1760238877777,0.16554848,110980.0,110970.0,1e-08]
[1760238877980,0.54515006,110980.0,110970.0,1e-08]
[1760238878792,0.55979799,110990.0,110970.0,1e-08]
[1760238878993,0.55979799,110990.0,110970.0,0.180227]
[1760238879214,0.37960158,110990.0,110980.0,0.18021265]
[1760238879417,0.21810324,111000.0,110980.0,0.03732]
[1760238879418,0.41752158,111000.0,110980.0,0.03732]
[1760238879623,0.59770199,111000.0,110980.0,0.26553214]
[1760238879827,0.26085711,111020.0,111000.0,0.18018018]
[1760238879828,0.63137412,111020.0,111000.0,0.18018018]
[1760238880037,0.63137412,111020.0,110990.0,0.21751641]
[1760238880245,0.63137412,111020.0,110980.0,0.29027512]
[1760238880246,0.55978238,111000.0,110980.0,0.06373235]
[1760238880444,0.18019641,110990.0,110970.0,0.28127907]
[1760238880656,0.18021265,110980.0,110970.0,0.06373235]
[1760238881474,0.55981423,110980.0,110970.0,0.06373235]
[1760238881682,0.18022889,110970.0,110960.0,0.06373235]
[1760238881885,0.15969789,110970.0,110960.0,0.00015014]
[1760238882420,0.55981423,110980.0,110960.0,0.00015014]
[1760238882822,0.56879138,111000.0,110970.0,0.26408811]
[1760238883021,0.18019721,110990.0,110970.0,0.08386]
[1760238883232,0.55979879,110990.0,110970.0,0.03564]
[1760238883477,0.18021265,110980.0,110970.0,0.03564]
[1760238883905,0.1891898,111000.0,110980.0,0.18020479]
[1760238884078,0.1891898,111000.0,110980.0,0.21584479]
[1760238884286,0.18016394,111010.0,110990.0,0.26405547]
[1760238884726,0.18016394,111010.0,110990.0,0.21583547]
[1760238884932,0.18018018,111000.0,110980.0,0.00901063]
[1760238885108,0.18018018,111000.0,110980.0,0.18922296]
[1760238885312,0.18019641,110990.0,110970.0,0.28861268]
[1760238885545,0.76407226,111000.0,110980.0,0.18021265]
[1760238886081,0.18018018,111000.0,110980.0,0.18021265]
[1760238886643,0.18018018,111000.0,110980.0,0.21585265]
[1760238886947,0.18018018,111000.0,110980.0,0.18021265]
[1760238887833,0.76407226,111000.0,110980.0,0.18021265]
[1760238888650,0.76407226,111000.0,110960.0,0.12967439]
[1760238888651,0.18021265,110980.0,110960.0,0.12967439]
[1760238888869,0.76408849,110990.0,110960.0,0.30991884]
[1760238889014,0.76408849,110990.0,110970.0,0.18022856]
[1760238889216,0.18022889,110970.0,110960.0,0.00015014]
[1760238889553,0.18022889,110970.0,110960.0,0.00073916]
[1760238890950,0.76412097,110970.0,110960.0,0.00073916]
[1760238891152,1.10412097,110970.0,110960.0,0.00073916]
[1760238893328,0.52022889,110970.0,110960.0,0.00073916]
[1760238893734,0.76410473,110980.0,110960.0,0.00073916]
[1760238893976,0.18022889,110970.0,110960.0,0.00073916]
[1760238894151,0.76410473,110980.0,110960.0,0.18098387]
[1760238894376,0.18920623,110990.0,110960.0,0.26484387]
[1760238894572,0.18021926,110980.0,110960.0,0.26484387]
[1760238894972,0.18118746,110980.0,110960.0,0.26484387]
[1760238895363,0.18118746,110980.0,110960.0,0.32857622]
[1760238895810,0.18022889,110970.0,110960.0,0.21662387]
[1760238896040,0.18118746,110980.0,110960.0,0.21662429]
[1760238896575,0.18022889,110970.0,110960.0,0.21662429]
[1760238897340,0.18118746,110980.0,110960.0,0.26484429]
[1760238897568,0.18118085,110980.0,110960.0,0.26484429]
[1760238897760,0.18022889,110970.0,110960.0,0.00073916]
[1760238897933,0.18022889,110970.0,110960.0,0.01876367]
[1760238898145,0.18022889,110970.0,110960.0,0.00073916]
[1760238898911,0.18022889,110970.0,110960.0,0.01876367]
[1760238900303,0.76412097,110970.0,110960.0,0.00073916]
[1760238900456,1.10412097,110970.0,110960.0,0.00073916]
[1760238900678,0.18027762,110940.0,110930.0,0.06373235]
[1760238901041,0.18027509,110950.0,110920.0,0.29779335]
[1760238901042,0.77318023,110950.0,110920.0,0.29779335]
[1760238901243,0.18026162,110950.0,110930.0,0.08386]
[1760238901363,0.18027857,110940.0,110920.0,0.28892685]
[1760238901565,0.18029387,110930.0,110920.0,0.06396251]
[1760238901768,0.18027857,110940.0,110920.0,0.26439811]
[1760238901985,0.18026659,110950.0,110930.0,0.2159333]
[1760238902218,0.18027762,110940.0,110930.0,0.2159333]
[1760238902421,0.18027762,110940.0,110920.0,0.27991046]
[1760238902618,0.18027762,110940.0,110920.0,0.06396251]
[1760238902819,0.18029387,110930.0,110920.0,0.06396251]
[1760238903234,0.18029387,110930.0,110920.0,0.00023016]
[1760238903571,0.76418595,110930.0,110920.0,0.00023016]
[1760238903951,0.18029387,110930.0,110920.0,0.00023016]
[1760238904152,0.76418595,110930.0,110920.0,0.00023016]
[1760238904535,0.18029387,110930.0,110920.0,0.00023016]
[1760238904735,0.18029387,110930.0,110920.0,0.16896352]
[1760238904996,0.18029387,110930.0,110920.0,0.01826117]
[1760238905126,0.76418595,110930.0,110920.0,0.00023016]
[1760238905552,0.18029387,110930.0,110920.0,0.00023016]
[1760238906070,0.1802881,110940.0,110920.0,0.00023016]
[1760238906236,0.18029387,110930.0,110920.0,0.00023016]
[1760238906666,0.1802881,110940.0,110920.0,0.2331573]
[1760238906843,0.76418018,110940.0,110920.0,0.18054029]
[1760238907204,0.18026311,110950.0,110920.0,0.28999814]
[1760238907416,0.18026311,110950.0,110930.0,0.26726328]
[1760238907642,0.18024939,110960.0,110940.0,0.03671]
[1760238907839,0.18026137,110950.0,110930.0,0.28072086]
[1760238908056,0.77315372,110960.0,110940.0,0.03671]
[1760238908284,0.18926164,110960.0,110940.0,0.03671]
[1760238908539,0.18926164,110960.0,110940.0,0.21698691]
[1760238908714,0.18026137,110950.0,110940.0,0.21698691]
[1760238908913,0.18026137,110950.0,110940.0,0.08697]
[1760238909144,0.18026137,110950.0,110930.0,0.06373235]
[1760238909145,0.18027762,110940.0,110930.0,0.06373235]
[1760238909326,0.7641697,110940.0,110930.0,0.06373235]
[1760238909781,0.18029387,110930.0,110920.0,0.10067251]
[1760238910382,0.18029387,110930.0,110920.0,0.06396251]
[1760238910793,0.18029387,110930.0,110920.0,0.24427264]
[1760238911209,0.18027848,110940.0,110920.0,0.40423264]
[1760238911512,0.18029387,110930.0,110920.0,0.33124264]
[1760238911716,0.18027848,110940.0,110920.0,0.33124264]
[1760238911907,0.18927443,110950.0,110940.0,0.18027762]
[1760238912051,0.18927443,110950.0,110930.0,0.35549382]
[1760238912253,0.26088526,110960.0,110930.0,0.36274091]
[1760238912457,0.18026137,110950.0,110940.0,0.03671]
[1760238913042,0.18027762,110940.0,110930.0,0.18029387]
[1760238913247,0.18927443,110950.0,110930.0,0.26726387]
[1760238913424,0.18027762,110940.0,110930.0,0.21700387]
[1760238913632,0.18027762,110940.0,110930.0,0.03671]
[1760238914083,0.18027762,110940.0,110920.0,0.10067251]
[1760238914298,0.18029387,110930.0,110920.0,0.24427264]
[1760238914523,0.18027762,110940.0,110930.0,0.21700387]
[1760238914909,0.18926164,110960.0,110930.0,0.34025387]
[1760238915192,0.18027762,110940.0,110930.0,0.40398622]
[1760238915401,0.1802664,110950.0,110940.0,0.03671]
[1760238915844,0.18027762,110940.0,110930.0,0.10044235]
[1760238916060,0.16560834,110940.0,110930.0,0.03671]
[1760238916288,0.18029387,110930.0,110920.0,0.06396251]
[1760238916514,0.76418595,110930.0,110920.0,0.00023016]
[1760238916751,1.10418595,110930.0,110920.0,0.00023016]
[1760238918116,0.52029387,110930.0,110920.0,0.00023016]
[1760238918339,0.18029387,110930.0,110920.0,0.00023016]
[1760238918570,0.18029387,110930.0,110920.0,0.00258717]
[1760238918803,0.76418595,110930.0,110920.0,0.00258717]
[1760238919438,0.18029387,110930.0,110920.0,0.00258717]
[1760238919855,0.18927946,110950.0,110920.0,0.08955717]
[1760238920059,0.18927946,110950.0,110930.0,0.21700198]
[1760238920269,0.18927946,110950.0,110940.0,0.00117829]
[1760238920925,0.16541807,110960.0,110940.0,0.18145591]
[1760238921229,0.19021096,110970.0,110950.0,0.18026137]
[1760238921433,0.181204,110970.0,110950.0,0.21697137]
[1760238921652,0.18024513,110960.0,110950.0,0.21697137]
[1760238922751,0.18026137,110950.0,110940.0,0.10044235]
[1760238922962,0.18026137,110950.0,110930.0,0.28974902]
[1760238923189,0.18026137,110950.0,110940.0,0.18027762]
[1760238923812,0.18026137,110950.0,110930.0,0.28974902]
[1760238924731,0.18027762,110940.0,110930.0,0.06373235]
[1760238924949,0.18029387,110930.0,110920.0,0.10067251]
[1760238925160,0.76418595,110930.0,110920.0,0.00023016]
[1760238926295,1.10418595,110930.0,110920.0,0.00023016]
[1760238927812,0.18029387,110930.0,110920.0,0.00023016]
[1760238928310,0.76418595,110930.0,110920.0,0.00023016]
[1760238929164,1.10418595,110930.0,110920.0,0.00023016]
[1760238930920,0.52029387,110930.0,110920.0,0.00023016]
[1760238931155,1.10418595,110930.0,110920.0,0.00023016]
[1760238931593,0.52029387,110930.0,110920.0,0.00023016]
[1760238931791,1.10418595,110930.0,110920.0,0.00258717]
[1760238932345,1.10418595,110930.0,110920.0,1e-08]
[1760238933433,0.76421847,110910.0,110900.0,0.0004]
[1760238933638,1.10421847,110910.0,110900.0,0.0004]
[1760238933863,1.08954211,110910.0,110900.0,0.0004]
[1760238934130,1.08954211,110910.0,110900.0,0.00157893]
[1760238934550,0.50565003,110910.0,110900.0,0.00157893]
[1760238934754,1.08954211,110910.0,110900.0,0.00157893]
[1760238934961,1.10263499,110910.0,110900.0,0.00157893]
[1760238935646,0.50565003,110910.0,110900.0,0.00157893]
[1760238935862,0.18032639,110910.0,110900.0,0.00157893]
[1760238938054,0.76421847,110910.0,110900.0,0.00157893]
[1760238938463,0.18032639,110910.0,110900.0,0.00157893]
[1760238939732,0.76421847,110910.0,110900.0,0.00157893]
[1760238940137,1.10421847,110910.0,110900.0,0.00157893]
[1760238943663,1.28187819,110910.0,110900.0,0.00157893]
[1760238943885,1.0949518,110910.0,110900.0,0.00157893]
[1760238944135,1.27527819,110910.0,110900.0,0.00157893]
[1760238945431,0.56110229,110910.0,110900.0,0.00157893]
[1760238945650,0.18032639,110910.0,110900.0,0.00157893]
[1760238945860,0.56110229,110910.0,110900.0,0.00157893]
[1760238946790,1.28187819,110910.0,110900.0,0.00157893]
[1760238947250,0.90110229,110910.0,110900.0,0.00157893]
[1760238947702,1.28187819,110910.0,110900.0,0.00157893]
[1760238951953,0.52032639,110910.0,110900.0,0.00157893]
[1760238952161,0.90110229,110910.0,110900.0,0.00157893]
[1760238952384,0.56110229,110910.0,110900.0,0.00157893]
[1760238952796,0.90110229,110910.0,110900.0,0.00157893]
[1760238953219,1.28187819,110910.0,110900.0,0.00157893]
[1760238953420,0.52032639,110910.0,110900.0,0.00157893]
[1760238953829,0.90110229,110910.0,110900.0,0.00157893]
[1760238954244,1.28187819,110910.0,110900.0,0.00157893]
[1760238954445,1.28187819,110910.0,110900.0,1e-08]
[1760238955320,1.31203009,110910.0,110900.0,1e-08]
[1760238955913,1.45294618,110910.0,110900.0,1e-08]
[1760238957134,1.43456422,110910.0,110900.0,1e-08]
[1760238960792,1.41051262,110910.0,110900.0,1e-08]
[1760238960997,0.64893254,110910.0,110900.0,1e-08]
[1760238961212,1.41048434,110910.0,110900.0,1e-08]
[1760238961790,1.43548433,110910.0,110900.0,1e-08]
[1760238962008,1.45953593,110910.0,110900.0,1e-08]
[1760238962465,1.49745593,110910.0,110900.0,1e-08]
[1760238964361,1.49743818,110910.0,110900.0,1e-08]
[1760238964578,0.55052708,110880.0,110870.0,1e-08]
[1760238964724,0.18042399,110850.0,110840.0,0.07162362]
[1760238964915,0.94197579,110850.0,110840.0,0.0717739]
[1760238965116,0.94197579,110850.0,110840.0,0.00015028]
[1760238965608,1.28197579,110850.0,110840.0,0.00015028]
[1760238966575,1.28197579,110850.0,110810.0,0.0004]
[1760238966576,0.18047283,110820.0,110810.0,0.0004]
[1760238966761,0.00812867,110820.0,110810.0,0.00055048]
[1760238966985,0.00812867,110820.0,110810.0,1.08257441]
[1760238967336,0.6418447,110850.0,110830.0,0.18045437]
[1760238967559,0.07162362,110850.0,110840.0,0.28614429]
[1760238967772,0.64183705,110870.0,110840.0,0.28614429]